bitfinex/quotes_BTCUSD_20250204
["timestamp","ask_amount","ask_price","bid_price","bid_amount"]
[1738708332496,0.39737618,97011.0,97010.0,0.15584728]
[1738708334633,0.29499112,97011.0,97010.0,0.15584728]
[1738708334797,0.01929112,97011.0,97010.0,0.21168854]
[1738708334999,0.01929112,97011.0,97010.0,0.44418854]
[1738708335199,0.01929112,97011.0,97010.0,0.49498854]
[1738708335415,1.2e-07,97011.0,97010.0,0.6193736]
[1738708335618,6.8e-06,97025.0,97024.0,0.1546]
[1738708335957,6.8e-06,97025.0,97024.0,0.1906748]
[1738708336275,6.8e-06,97025.0,97024.0,0.19191136]
[1738708338469,6.8e-06,97025.0,97024.0,0.19291136]
[1738708339306,6.8e-06,97025.0,97024.0,0.1556]
[1738708341000,6.8e-06,97025.0,97024.0,0.16452814]
[1738708342660,6.8e-06,97025.0,97024.0,0.16576481]
[1738708343505,6.8e-06,97025.0,97024.0,0.15683667]
[1738708344149,6.8e-06,97025.0,97024.0,0.1556]
[1738708344845,6.8e-06,97025.0,97024.0,0.1546]
[1738708345253,6.8e-06,97025.0,97024.0,0.1556]
[1738708346186,6.8e-06,97025.0,97024.0,0.1546]
[1738708347791,6.8e-06,97025.0,97024.0,0.1556]
[1738708348250,0.10239186,97025.0,97024.0,0.001]
[1738708348402,0.11264173,97025.0,97024.0,0.001]
[1738708348999,0.34834073,97025.0,97024.0,0.001]
[1738708349201,0.63305544,97025.0,97024.0,0.001]
[1738708349404,0.67805544,97025.0,97024.0,0.001]
[1738708349688,0.154621,97011.0,97010.0,0.00022428]
[1738708349828,0.33350606,97011.0,97010.0,0.00022428]
[1738708351075,0.19809082,97011.0,97010.0,0.00022428]
[1738708351918,0.19809082,97011.0,97010.0,0.17035524]
[1738708352109,0.19809082,97011.0,97010.0,0.15484728]
[1738708352312,0.02020576,97011.0,97010.0,0.15484728]
[1738708352684,0.02020576,97011.0,97010.0,0.38674728]
[1738708353061,0.001,97011.0,97010.0,0.38674728]
[1738708353266,0.001,97011.0,97010.0,0.39591092]
[1738708353465,0.001,97011.0,97010.0,0.47675854]
[1738708353670,6.8e-06,97025.0,97024.0,0.1546]
[1738708355523,6.8e-06,97025.0,97024.0,0.1556]
[1738708355824,6.8e-06,97025.0,97024.0,0.1546]
[1738708356228,6.8e-06,97025.0,97024.0,0.1556]
[1738708356431,6.8e-06,97025.0,97024.0,0.19946789]
[1738708357886,6.8e-06,97025.0,97024.0,0.1556]
[1738708369016,0.10239186,97025.0,97024.0,0.1556]
[1738708370338,0.10239186,97025.0,97024.0,0.1546]
[1738708370762,0.10239186,97025.0,97024.0,0.1556]
[1738708371381,0.10239186,97025.0,97024.0,0.1546]
[1738708371810,0.10239186,97025.0,97024.0,0.001]
[1738708372444,0.10239186,97025.0,97024.0,0.00092487]
[1738708373194,0.10239186,97025.0,97024.0,0.15552487]
[1738708374986,6.8e-06,97025.0,97024.0,0.21230576]
[1738708375613,6.8e-06,97025.0,97024.0,0.15552487]
[1738708379293,3.04e-05,97032.0,97031.0,0.154589]
[1738708379432,0.10241546,97032.0,97031.0,0.154589]
[1738708380864,0.10241546,97032.0,97031.0,0.155589]
[1738708381071,0.11312992,97032.0,97031.0,0.155589]
[1738708384038,0.22849794,97032.0,97031.0,0.001]
[1738708384238,0.24778009,97032.0,97031.0,0.001]
[1738708384557,0.65236809,97032.0,97031.0,0.001]
[1738708384714,0.70066809,97032.0,97031.0,0.001]
[1738708385330,0.88152323,97032.0,97031.0,0.001]
[1738708385863,0.84175521,97032.0,97031.0,0.001]
[1738708386220,0.84175521,97032.0,97031.0,0.00122428]
[1738708386603,0.81290007,97032.0,97031.0,0.00022428]
[1738708387044,0.81390007,97032.0,97031.0,0.00122428]
[1738708387238,0.81290007,97032.0,97031.0,0.00022428]
[1738708387640,0.81390007,97032.0,97031.0,0.00022428]
[1738708387845,0.81090007,97032.0,97031.0,0.00022428]
[1738708388251,0.81290007,97032.0,97031.0,0.00022428]
[1738708388615,0.81190007,97032.0,97031.0,0.00022428]
[1738708388832,0.81390007,97032.0,97031.0,0.00022428]
[1738708389215,1.08960007,97032.0,97031.0,0.00022428]
[1738708389421,1.08860007,97032.0,97031.0,0.00022428]
[1738708389655,1.08960007,97032.0,97031.0,0.00022428]
[1738708389860,1.08760007,97032.0,97031.0,0.00022428]
[1738708390291,1.08860007,97032.0,97031.0,0.00022428]
[1738708391201,0.78201207,97032.0,97031.0,0.00022428]
[1738708391340,0.78501207,97032.0,97031.0,0.00022428]
[1738708391543,0.53501207,97032.0,97031.0,0.00022428]
[1738708391747,0.68760007,97032.0,97031.0,0.00022428]
[1738708391951,0.68860007,97032.0,97031.0,0.00022428]
[1738708392485,0.68760007,97032.0,97031.0,0.00022428]
[1738708392687,0.93660007,97032.0,97031.0,0.00022428]
[1738708392990,0.93860007,97032.0,97031.0,0.00022428]
[1738708394561,0.96941899,97032.0,97031.0,0.00022428]
[1738708395434,1.03899958,97032.0,97031.0,0.00022428]
[1738708396073,1.03799958,97032.0,97031.0,0.00022428]
[1738708396612,1.03899958,97032.0,97031.0,0.00022428]
[1738708397427,0.96941899,97032.0,97031.0,0.00022428]
[1738708398229,1.03124899,97032.0,97031.0,0.00022428]
[1738708404667,1.03024899,97032.0,97031.0,0.00022428]
[1738708404859,1.03124899,97032.0,97031.0,0.00022428]
[1738708406081,1.07248999,97032.0,97031.0,0.00022428]
[1738708406380,1.07148999,97032.0,97031.0,0.00022428]
[1738708406541,1.06077553,97032.0,97031.0,0.00022428]
[1738708406856,1.06177553,97032.0,97031.0,0.00022428]
[1738708407053,1.16427025,97032.0,97031.0,0.00022428]
[1738708407903,1.06177553,97032.0,97031.0,0.00022428]
[1738708408247,0.99994553,97032.0,97031.0,0.00022428]
[1738708411334,0.95164553,97032.0,97031.0,0.00022428]
[1738708411829,1.17347553,97032.0,97031.0,0.00022428]
[1738708424412,1.19647553,97032.0,97031.0,0.00022428]
[1738708424615,0.15462,97012.0,97011.0,0.00022449]
[1738708424942,0.68270506,97012.0,97011.0,0.00022449]
[1738708425489,0.93270506,97012.0,97011.0,0.00022449]
[1738708426309,0.93370506,97012.0,97011.0,0.00022449]
[1738708426769,0.93670506,97012.0,97011.0,0.00022449]
[1738708426922,1.03919978,97012.0,97011.0,0.00022449]
[1738708428363,1.10102978,97012.0,97011.0,0.00022449]
[1738708429273,1.15113085,97012.0,97011.0,0.00022449]
[1738708430250,1.04863613,97012.0,97011.0,0.00022449]
[1738708433097,0.98680613,97012.0,97011.0,0.00022449]
[1738708433304,0.6912758,97012.0,97011.0,0.00022449]
[1738708435205,0.68218613,97012.0,97011.0,0.15484549]
[1738708435405,0.68218613,97012.0,97011.0,0.20004549]
[1738708435635,0.43218613,97012.0,97011.0,0.20004549]
[1738708435930,0.43118613,97012.0,97011.0,0.20004549]
[1738708436262,0.42918613,97012.0,97011.0,0.20004549]
[1738708436614,0.42818613,97012.0,97011.0,0.20004549]
[1738708438309,0.49001613,97012.0,97011.0,0.20004549]
[1738708438513,0.42818613,97012.0,97011.0,0.20004549]
[1738708439969,0.39736721,97012.0,97011.0,0.20004549]
[1738708440604,0.29498215,97012.0,97011.0,0.20004549]
[1738708441176,0.2757,97012.0,97011.0,0.20004549]
[1738708442206,0.2757,97012.0,97011.0,0.20104549]
[1738708442352,0.2757,97012.0,97011.0,0.20304549]
[1738708444851,0.37808506,97012.0,97011.0,0.20304549]
[1738708445071,0.37808506,97012.0,97011.0,0.15784549]
[1738708445291,0.41589357,97012.0,97011.0,0.00322449]
[1738708445525,0.57051357,97012.0,97011.0,0.00322449]
[1738708445738,0.57051357,97012.0,97011.0,0.00222449]
[1738708445956,0.80548677,97012.0,97011.0,0.00222449]
[1738708446152,0.85550459,97012.0,97011.0,0.00122449]
[1738708446353,0.91733459,97012.0,97011.0,0.00122449]
[1738708446559,0.91733459,97012.0,97011.0,0.00322449]
[1738708446560,1.21563459,97012.0,97011.0,0.00322449]
[1738708446767,1.21563459,97012.0,97011.0,0.00222449]
[1738708446974,1.21563459,97012.0,97011.0,0.00022449]
[1738708448195,1.15480459,97012.0,97011.0,0.00022449]
[1738708448413,1.16968501,97012.0,97011.0,0.00022449]
[1738708448638,1.16868501,97012.0,97011.0,0.00022449]
[1738708448891,1.18168501,97012.0,97011.0,0.00122449]
[1738708449326,1.17068501,97012.0,97011.0,0.00022449]
[1738708449572,1.15780459,97012.0,97011.0,0.00022449]
[1738708449787,1.11999608,97012.0,97011.0,0.00022449]
[1738708452104,1.12899608,97012.0,97011.0,0.00122449]
[1738708452260,1.12499608,97012.0,97011.0,0.00122449]
[1738708453374,1.11599608,97012.0,97011.0,0.00022449]
[1738708453582,1.12899608,97012.0,97011.0,0.00122449]
[1738708453788,1.12899608,97012.0,96983.0,0.0824568]
[1738708453789,0.0815,97008.0,96934.0,0.00022428]
[1738708453987,0.5655,97010.0,96904.0,0.0206312]
[1738708453988,0.409598,96919.0,96904.0,0.0206312]
[1738708454187,0.02,96894.0,96840.0,0.0788]
[1738708454361,0.06183,96917.0,96840.0,0.0788]
[1738708454362,0.206485,96859.0,96841.0,0.01402895]
[1738708454567,0.01,96884.0,96840.0,0.08829052]
[1738708454568,0.14282012,96870.0,96840.0,0.08829052]
[1738708454849,0.154892,96842.0,96840.0,0.0788]
[1738708455055,0.15,96849.0,96827.0,0.0788]
[1738708455586,0.154906,96833.0,96827.0,0.0788]
[1738708455788,0.206546,96831.0,96827.0,0.07927045]
[1738708455992,0.10238506,96832.0,96827.0,0.07927045]
[1738708456225,0.154913,96828.0,96827.0,0.07927045]
[1738708456425,0.154913,96828.0,96827.0,0.00047045]
[1738708456577,0.304913,96828.0,96827.0,0.00047045]
[1738708456793,0.70280978,96828.0,96827.0,0.00047045]
[1738708456994,0.51903496,96828.0,96827.0,0.00047045]
[1738708457461,0.51903496,96828.0,96827.0,0.00347045]
[1738708457722,0.61655456,96828.0,96827.0,0.00047045]
[1738708457936,0.63555456,96828.0,96827.0,0.00147045]
[1738708458136,0.63555456,96828.0,96827.0,0.00047045]
[1738708458602,0.90355456,96828.0,96827.0,0.00247045]
[1738708459056,0.89355456,96828.0,96827.0,0.00247045]
[1738708459283,1.1749317,96828.0,96827.0,1e-08]
[1738708459403,1.21225456,96828.0,96827.0,1e-08]
[1738708459645,1.21225456,96828.0,96765.0,0.206684]
[1738708459646,0.154986,96783.0,96765.0,0.206684]
[1738708459852,0.11788366,96782.0,96765.0,0.00046913]
[1738708460050,0.25737306,96782.0,96768.0,0.155008]
[1738708460306,0.10238506,96782.0,96774.0,0.154999]
[1738708460851,0.10238506,96782.0,96775.0,0.154997]
[1738708461074,0.15312137,96782.0,96775.0,0.154997]
[1738708461279,0.10238506,96782.0,96776.0,0.154996]
[1738708461966,0.10238506,96782.0,96765.0,0.00046913]
[1738708462163,0.10238506,96782.0,96774.0,0.154998]
[1738708462586,0.25,96781.0,96775.0,0.154998]
[1738708462788,0.10238506,96780.0,96775.0,0.154998]
[1738708462968,0.05168654,96779.0,96775.0,0.154998]
[1738708463306,0.1540716,96779.0,96772.0,0.155002]
[1738708463480,0.1540716,96779.0,96775.0,0.001]
[1738708463888,0.1540716,96779.0,96773.0,0.155001]
[1738708464121,0.1540716,96779.0,96775.0,0.001]
[1738708464317,0.15839092,96778.0,96775.0,0.001]
[1738708464499,0.001,96781.0,96775.0,0.001]
[1738708464714,0.25,96786.0,96785.0,0.154982]
[1738708465293,0.25,96786.0,96783.0,0.154985]
[1738708465467,0.25,96786.0,96782.0,0.154986]
[1738708465667,0.25,96786.0,96779.0,0.206654]
[1738708465668,0.25,96786.0,96770.0,0.206673]
[1738708465893,0.025,96785.0,96770.0,0.206673]
[1738708466007,0.025,96785.0,96784.0,0.154983]
[1738708466208,0.25,96786.0,96781.0,0.20665]
[1738708466430,0.25,96786.0,96784.0,0.154983]
[1738708466650,0.25,96785.0,96784.0,0.154983]
[1738708467052,0.25,96785.0,96783.0,0.154984]
[1738708467279,0.10238506,96784.0,96769.0,0.109]
[1738708467476,0.13762357,96784.0,96777.0,0.154994]
[1738708468060,0.154993,96779.0,96768.0,0.155009]
[1738708468262,0.10238506,96778.0,96768.0,0.155009]
[1738708468640,0.619986,96776.0,96773.0,0.001]
[1738708468881,0.155,96774.0,96773.0,0.001]
[1738708469105,0.155,96774.0,96757.0,0.155027]
[1738708469106,0.155011,96767.0,96757.0,0.155027]
[1738708469313,0.10238506,96766.0,96759.0,0.155024]
[1738708469536,0.10238506,96766.0,96756.0,0.206705]
[1738708469734,0.25,96774.0,96754.0,0.0145023]
[1738708469945,0.10238506,96771.0,96770.0,0.155006]
[1738708470368,0.25,96774.0,96773.0,0.155001]
[1738708470582,0.10238506,96774.0,96773.0,0.155001]
[1738708471652,0.51762357,96774.0,96766.0,0.155013]
[1738708471863,0.10238506,96773.0,96765.0,0.00146913]
[1738708472077,0.10238506,96773.0,96765.0,0.00046913]
[1738708472283,0.155006,96771.0,96765.0,0.00046913]
[1738708472489,0.10238506,96770.0,96765.0,0.00046913]
[1738708472729,0.21213776,96769.0,96765.0,0.00046913]
[1738708472941,0.10238506,96768.0,96765.0,0.00046913]
[1738708473154,0.25739506,96768.0,96765.0,0.00146913]
[1738708473363,0.155012,96767.0,96765.0,0.00146913]
[1738708473571,0.35238506,96766.0,96765.0,0.00046913]
[1738708473778,0.40883734,96766.0,96765.0,0.00146913]
[1738708474003,0.40883734,96766.0,96765.0,0.00246913]
[1738708474273,0.40883734,96766.0,96765.0,0.00146913]
[1738708474486,0.40883734,96766.0,96765.0,0.00246913]
[1738708474732,0.40883734,96766.0,96765.0,0.00146913]
[1738708474948,0.40883734,96766.0,96765.0,0.00246913]
[1738708475365,0.40883734,96766.0,96765.0,0.00146913]
[1738708475589,0.40883734,96766.0,96765.0,0.00246913]
[1738708477409,0.40883734,96766.0,96765.0,0.00146913]
[1738708477845,0.40883734,96766.0,96765.0,0.00246913]
[1738708478247,0.56385034,96766.0,96765.0,0.00146913]
[1738708478460,0.56385034,96766.0,96765.0,0.00046913]
[1738708478680,0.56385034,96766.0,96765.0,0.00146913]
[1738708479235,0.56385034,96766.0,96765.0,0.00246913]
[1738708479431,0.50739806,96766.0,96765.0,0.00146913]
[1738708479644,0.35238506,96766.0,96765.0,0.00046913]
[1738708480678,0.50939806,96766.0,96765.0,0.00046913]
[1738708481025,0.50939806,96766.0,96765.0,0.00057623]
[1738708482025,0.50739806,96766.0,96765.0,0.00057623]
[1738708482492,0.50839806,96766.0,96765.0,0.00057623]
[1738708483749,0.4427781,96766.0,96765.0,0.00057623]
[1738708483957,0.35338506,96766.0,96765.0,0.00057623]
[1738708484162,0.4028535,96766.0,96765.0,0.00057623]
[1738708484360,0.30046844,96766.0,96765.0,0.15559023]
[1738708484562,0.05046844,96766.0,96765.0,0.34885027]
[1738708484766,0.05046844,96766.0,96765.0,0.37185027]
[1738708485170,0.05046844,96766.0,96765.0,0.38112827]
[1738708485713,0.04946844,96766.0,96765.0,0.38312827]
[1738708485874,0.03044212,96784.0,96783.0,0.154985]
[1738708487120,0.01913559,96784.0,96783.0,0.154985]
[1738708488090,0.25,96788.0,96787.0,0.154979]
[1738708489593,0.002,96788.0,96787.0,0.154979]
[1738708491392,0.10438506,96788.0,96787.0,0.154979]
[1738708491653,0.35438506,96788.0,96787.0,0.154979]
[1738708491856,0.38982357,96788.0,96784.0,0.206645]
[1738708492062,0.38982357,96788.0,96786.0,0.15498]
[1738708492474,0.38982357,96788.0,96784.0,0.206645]
[1738708492587,0.38982357,96788.0,96787.0,0.154979]
[1738708493229,0.35438506,96788.0,96787.0,0.154979]
[1738708494017,0.35238506,96788.0,96787.0,0.154979]
[1738708494209,0.35338506,96788.0,96787.0,0.154979]
[1738708494888,0.35538506,96788.0,96787.0,0.154979]
[1738708503259,0.35516006,96788.0,96787.0,0.154979]
[1738708504656,0.35516006,96788.0,96787.0,0.12406376]
[1738708504866,0.35516006,96788.0,96787.0,0.12417056]
[1738708505970,0.35516006,96788.0,96787.0,0.1550858]
[1738708506377,0.35516006,96788.0,96787.0,0.0001068]
[1738708506573,0.35516006,96788.0,96786.0,0.15351549]
[1738708507519,0.35516006,96788.0,96784.0,0.206645]
[1738708507715,0.35216006,96788.0,96784.0,0.206645]
[1738708507919,0.35316006,96788.0,96784.0,0.206645]
[1738708508537,0.35316006,96788.0,96783.0,0.0001071]
[1738708508737,0.35216006,96788.0,96784.0,0.155984]
[1738708509194,0.154982,96785.0,96784.0,0.001]
[1738708509438,0.25736706,96785.0,96784.0,0.001]
[1738708509638,0.154984,96784.0,96783.0,0.0001071]
[1738708509891,0.10238506,96784.0,96776.0,0.15090862]
[1738708510112,0.154988,96782.0,96776.0,0.14507441]
[1738708510329,0.25,96788.0,96766.0,0.10904]
[1738708510550,0.10238506,96787.0,96767.0,0.02186858]
[1738708510767,0.10238506,96787.0,96782.0,0.154986]
[1738708511010,0.10238506,96787.0,96783.0,0.001]
[1738708511224,0.10238506,96787.0,96783.0,0.155985]
[1738708511440,0.10238506,96787.0,96783.0,0.154985]
[1738708511657,0.10238506,96787.0,96780.0,0.206654]
[1738708511884,0.10238506,96787.0,96784.0,0.154983]
[1738708512349,0.10238506,96787.0,96768.0,0.206679]
[1738708512571,0.13856205,96787.0,96782.0,0.154986]
[1738708512775,0.10238506,96787.0,96783.0,0.001]
[1738708513722,0.154981,96786.0,96783.0,0.001]
[1738708513923,0.10238506,96785.0,96783.0,0.001]
[1738708514346,0.10238506,96785.0,96780.0,0.15499]
[1738708514765,0.10238506,96785.0,96781.0,0.150684]
[1738708516147,0.10238506,96785.0,96781.0,0.001]
[1738708516348,0.10238506,96785.0,96781.0,0.155988]
[1738708516578,0.25,96788.0,96783.0,0.08262116]
[1738708516783,0.25,96788.0,96787.0,0.154979]
[1738708516987,0.25,96788.0,96787.0,0.231679]
[1738708517303,0.25,96788.0,96787.0,0.254679]
[1738708517641,0.09199396,96814.0,96805.0,0.15495]
[1738708518876,0.09199396,96814.0,96813.0,0.154937]
[1738708519665,0.09199396,96838.0,96826.0,0.154917]
[1738708521352,0.00322491,96827.0,96826.0,0.154917]
[1738708521543,0.00022491,96827.0,96826.0,0.154917]
[1738708522100,0.00022491,96827.0,96826.0,0.156917]
[1738708522331,0.00022491,96827.0,96826.0,0.35780206]
[1738708522542,0.00022491,96827.0,96826.0,0.50580206]
[1738708522692,9.1e-07,96827.0,96826.0,0.61829678]
[1738708522898,9.1e-07,96827.0,96826.0,0.62029678]
[1738708523575,9.1e-07,96827.0,96826.0,0.63029678]
[1738708523778,9.1e-07,96827.0,96826.0,0.63229678]
[1738708523948,9.1e-07,96827.0,96826.0,0.63029678]
[1738708524143,9.1e-07,96827.0,96826.0,0.64010882]
[1738708524348,9.1e-07,96827.0,96826.0,0.63210882]
[1738708524525,9.1e-07,96827.0,96826.0,0.64210882]
[1738708524731,9.1e-07,96827.0,96826.0,0.64010882]
[1738708524958,9.1e-07,96827.0,96826.0,0.64210882]
[1738708525132,9.1e-07,96827.0,96826.0,0.64010882]
[1738708525329,0.25,96882.0,96881.0,0.154829]
[1738708525534,0.25,96882.0,96877.0,0.206446]
[1738708525535,0.1965,96895.0,96877.0,0.206446]
[1738708525735,0.10238506,96894.0,96877.0,0.206446]
[1738708526143,0.10238506,96894.0,96889.0,0.154815]
[1738708526554,0.35238506,96894.0,96860.0,0.14347596]
[1738708526715,0.35238506,96894.0,96889.0,0.00014102]
[1738708526911,0.35238506,96894.0,96892.0,0.154811]
[1738708527134,0.35238506,96894.0,96889.0,0.00014102]
[1738708527672,0.35238506,96894.0,96889.0,0.15495602]
[1738708527877,0.35238506,96894.0,96889.0,0.00014102]
[1738708528402,0.07747369,96893.0,96889.0,0.00014102]
[1738708528673,0.25,96890.0,96889.0,0.00014102]
[1738708528874,0.35238506,96890.0,96889.0,0.00014102]
[1738708529078,0.50238506,96890.0,96889.0,0.00014102]
[1738708529431,0.54938506,96890.0,96889.0,0.00014102]
[1738708529636,0.65187978,96890.0,96889.0,0.00014102]
[1738708530017,0.65287978,96890.0,96889.0,0.00014102]
[1738708530218,0.65187978,96890.0,96889.0,0.00014102]
[1738708530651,0.65887978,96890.0,96889.0,0.00114102]
[1738708531417,0.55638506,96890.0,96889.0,0.00114102]
[1738708531760,0.55838506,96890.0,96889.0,0.00114102]
[1738708533096,0.62021506,96890.0,96889.0,0.00114102]
[1738708533258,0.55838506,96890.0,96889.0,0.00114102]
[1738708533656,0.71319906,96890.0,96889.0,0.00114102]
[1738708533860,0.81569378,96890.0,96889.0,0.00114102]
[1738708534921,0.15,96889.0,96872.0,0.07271678]
[1738708535252,0.154841,96873.0,96872.0,0.07285786]
[1738708535451,0.25722606,96873.0,96872.0,0.07285786]
[1738708535588,0.25722606,96873.0,96872.0,0.00595777]
[1738708535787,0.25722606,96873.0,96872.0,0.00014108]
[1738708536515,0.50722606,96873.0,96872.0,0.00014108]
[1738708538053,0.154846,96871.0,96863.0,0.14739902]
[1738708538256,0.10238506,96870.0,96863.0,0.14748156]
[1738708538431,0.10238506,96870.0,96864.0,0.00583867]
[1738708538961,0.10243761,96870.0,96866.0,0.154852]
[1738708539498,0.10243761,96870.0,96867.0,0.00583867]
[1738708539684,0.10243761,96870.0,96866.0,0.154852]
[1738708539893,0.10243761,96870.0,96868.0,0.00583867]
[1738708540094,0.10243761,96870.0,96867.0,0.00583867]
[1738708540095,0.10238506,96870.0,96867.0,0.00583867]
[1738708540271,0.10238506,96870.0,96869.0,0.00583341]
[1738708540470,0.10238506,96870.0,96866.0,0.154852]
[1738708540675,0.10238506,96870.0,96869.0,0.00583341]
[1738708540850,0.10238506,96870.0,96867.0,0.154851]
[1738708541075,0.10238506,96870.0,96869.0,0.00583341]
[1738708541273,0.10238506,96870.0,96867.0,0.154851]
[1738708541456,0.10238506,96870.0,96869.0,0.00583341]
[1738708541655,0.10238506,96870.0,96867.0,0.154851]
[1738708541851,0.10238506,96870.0,96869.0,0.00583341]
[1738708542073,0.10238506,96870.0,96867.0,0.001]
[1738708542273,0.10238506,96870.0,96869.0,0.00583341]
[1738708542508,0.10238506,96870.0,96867.0,0.002]
[1738708542718,0.10238506,96870.0,96869.0,0.00583341]
[1738708542872,0.10238506,96870.0,96866.0,0.154852]
[1738708543071,0.16421506,96870.0,96869.0,0.00683341]
[1738708543272,0.10238506,96870.0,96869.0,0.001]
[1738708543715,0.25,96875.0,96874.0,0.15484]
[1738708544093,0.25,96875.0,96874.0,0.1585963]
[1738708544698,0.00022428,96890.0,96889.0,0.154816]
[1738708545104,0.00022428,96890.0,96889.0,0.15856648]
[1738708547473,0.00022428,96890.0,96889.0,0.16840265]
[1738708549121,0.00022428,96890.0,96889.0,0.15856648]
[1738708560682,0.01097651,96890.0,96889.0,0.15856648]
[1738708561920,0.26817557,96890.0,96889.0,0.00375048]
[1738708562121,0.63121663,96890.0,96889.0,0.00375048]
[1738708562336,0.154848,96869.0,96868.0,0.0001068]
[1738708562538,0.10238506,96869.0,96868.0,0.0001068]
[1738708562738,0.10238506,96869.0,96868.0,0.00520198]
[1738708563634,0.10238506,96869.0,96868.0,0.00620198]
[1738708563891,0.17375357,96869.0,96868.0,0.00520198]
[1738708564097,0.17375357,96869.0,96868.0,0.00620198]
[1738708564629,0.32860157,96869.0,96868.0,0.00620198]
[1738708564828,0.56040157,96869.0,96868.0,0.0011068]
[1738708565462,0.94443157,96869.0,96868.0,0.0021068]
[1738708565663,1.19443157,96869.0,96868.0,0.0021068]
[1738708565864,1.24416638,96869.0,96868.0,0.0011068]
[1738708566086,1.24416638,96869.0,96868.0,0.0001068]
[1738708566348,1.25601789,96869.0,96868.0,0.0001068]
[1738708566545,1.25601789,96869.0,96868.0,0.0011068]
[1738708566746,1.25901789,96869.0,96868.0,0.0011068]
[1738708566948,1.25401789,96869.0,96868.0,0.0001068]
[1738708567148,1.22641185,96869.0,96868.0,0.0001068]
[1738708567369,1.23441185,96869.0,96868.0,0.0011068]
[1738708568147,1.17258185,96869.0,96868.0,0.0011068]
[1738708568989,1.20317075,96869.0,96868.0,0.0011068]
[1738708570045,1.19217075,96869.0,96868.0,0.0001068]
[1738708570389,1.20317075,96869.0,96868.0,0.0011068]
[1738708572552,1.23617075,96869.0,96868.0,0.0011068]
[1738708573146,1.23617075,96869.0,96868.0,0.00100698]
[1738708573327,1.23417075,96869.0,96868.0,0.00100698]
[1738708573523,1.23717075,96869.0,96868.0,6.98e-06]
[1738708573709,1.22817075,96869.0,96868.0,6.98e-06]
[1738708573931,1.22817075,96869.0,96868.0,0.00100698]
[1738708573932,1.23717075,96869.0,96868.0,0.00100698]
[1738708575841,1.20658185,96869.0,96868.0,0.00100698]
[1738708576250,1.12521334,96869.0,96868.0,0.00100698]
[1738708576422,1.13521334,96869.0,96868.0,0.00100698]
[1738708577059,1.11221334,96869.0,96868.0,0.00100698]
[1738708577262,0.87041334,96869.0,96868.0,0.00100698]
[1738708577462,0.87063762,96869.0,96868.0,0.00100698]
[1738708577667,0.97313234,96869.0,96868.0,0.00100698]
[1738708578447,1.12313234,96869.0,96868.0,0.00100698]
[1738708578659,1.10400357,96869.0,96868.0,0.00100698]
[1738708579872,1.00150885,96869.0,96868.0,0.00100698]
[1738708580103,0.95500885,96869.0,96868.0,0.00100698]
[1738708580517,0.39030934,96869.0,96868.0,0.15585598]
[1738708580923,0.39030934,96869.0,96868.0,0.16062582]
[1738708581122,0.39030934,96869.0,96868.0,0.00577682]
[1738708581333,0.38730934,96869.0,96868.0,0.16062582]
[1738708581637,0.38730934,96869.0,96868.0,0.00577682]
[1738708581877,0.38830934,96869.0,96868.0,0.00577682]
[1738708582291,0.38730934,96869.0,96868.0,0.00577682]
[1738708582492,0.38730934,96869.0,96868.0,0.00477682]
[1738708582493,0.37830934,96869.0,96868.0,0.00477682]
[1738708582703,0.37930934,96869.0,96868.0,0.00477682]
[1738708582845,0.38330934,96869.0,96868.0,0.00477682]
[1738708583257,0.38330934,96869.0,96868.0,6.98e-06]
[1738708583440,0.38730934,96869.0,96868.0,6.98e-06]
[1738708584329,0.38730934,96869.0,96868.0,0.00475045]
[1738708584991,0.41842566,96869.0,96868.0,0.00475045]
[1738708585225,0.38730934,96869.0,96868.0,0.00475045]
[1738708586982,0.38730934,96869.0,96868.0,6.98e-06]
[1738708587867,0.38730934,96869.0,96868.0,0.00475045]
[1738708589838,0.38730934,96869.0,96868.0,6.98e-06]
[1738708592588,0.38730934,96869.0,96868.0,0.00472577]
[1738708593229,0.38730934,96869.0,96868.0,6.98e-06]
[1738708593720,0.63730934,96869.0,96868.0,6.98e-06]
[1738708594887,0.54215734,96869.0,96868.0,6.98e-06]
[1738708595666,0.79215734,96869.0,96868.0,6.98e-06]
[1738708596342,0.80291291,96869.0,96868.0,6.98e-06]
[1738708597635,0.90540763,96869.0,96868.0,6.98e-06]
[1738708597852,1.18340763,96869.0,96868.0,6.98e-06]
[1738708598859,1.18240763,96869.0,96868.0,6.98e-06]
[1738708599094,1.17540763,96869.0,96868.0,6.98e-06]
[1738708599582,1.18440763,96869.0,96868.0,0.00100698]
[1738708600214,1.2036092,96869.0,96868.0,0.00100698]
[1738708600667,1.2026092,96869.0,96868.0,0.00100698]
[1738708601664,1.2056092,96869.0,96868.0,0.00100698]
[1738708602227,1.19485363,96869.0,96868.0,0.00100698]
[1738708603263,1.25668363,96869.0,96868.0,0.00100698]
[1738708603454,1.28968363,96869.0,96868.0,0.00100698]
[1738708603654,0.376679,96868.0,96867.0,0.39777198]
[1738708603868,0.58155878,96868.0,96867.0,0.39777198]
[1738708604104,0.60076035,96868.0,96867.0,0.39777198]
[1738708604712,0.85076035,96868.0,96867.0,0.39777198]
[1738708604888,0.85376035,96868.0,96867.0,0.39777198]
[1738708606051,0.85376035,96868.0,96867.0,0.27762398]
[1738708606284,0.86276035,96868.0,96867.0,0.25697698]
[1738708606526,0.86276035,96868.0,96867.0,0.09617441]
[1738708606764,0.87276035,96868.0,96867.0,0.03846482]
[1738708607232,0.90348134,96868.0,96867.0,0.03846482]
[1738708607476,0.90348134,96868.0,96867.0,0.01781782]
[1738708607963,0.376686,96864.0,96863.0,8.254e-05]
[1738708608176,0.54012629,96864.0,96863.0,8.254e-05]
[1738708609393,0.54012629,96864.0,96828.0,0.08262116]
[1738708609394,0.421086,96845.0,96828.0,0.08262116]
[1738708609612,0.421086,96845.0,96844.0,0.08309029]
[1738708609613,0.79917106,96845.0,96844.0,0.08309029]
[1738708609847,0.79917106,96845.0,96844.0,0.00046913]
[1738708611085,0.85209362,96845.0,96844.0,0.00046913]
[1738708611296,0.95458834,96845.0,96844.0,0.00046913]
[1738708611699,1.20458834,96845.0,96844.0,0.00046913]
[1738708612035,1.21358834,96845.0,96844.0,0.00046913]
[1738708614615,0.99489362,96845.0,96844.0,0.00046913]
[1738708614844,0.96417263,96845.0,96844.0,0.00057593]
[1738708615071,0.97382801,96845.0,96844.0,0.00057593]
[1738708617158,0.95462644,96845.0,96844.0,0.00057593]
[1738708618316,0.96538526,96845.0,96844.0,0.00057593]
[1738708618546,1.06787998,96845.0,96844.0,0.00057593]
[1738708620056,1.10920398,96845.0,96844.0,0.00057593]
[1738708624641,1.12838036,96845.0,96844.0,0.00057593]
[1738708627043,0.97838036,96845.0,96844.0,0.00057593]
[1738708627399,1.12838036,96845.0,96844.0,0.00057593]
[1738708628249,1.19021036,96845.0,96844.0,0.00057593]